fUST/lending_fUST_20240714
["ID","MTS","AMOUNT","RATE_DAILY","PERIOD"]
[332059202,1720945846937,-626.81389372,0.00027162,2]
[332059203,1720945846946,-285.0,0.00027184,7]
[332059204,1720945846956,-1113.06032485,0.00027184,2]
[332059205,1720945846966,-750.0,0.00027195,2]
[332059206,1720945846975,-422.040591,0.00027195,2]
[332059207,1720945846984,-1671.71669364,0.00027228,2]
[332059208,1720945846994,-1425.59,0.00027397,2]
[332059209,1720945847004,-500.0,0.00027397,2]
[332059210,1720945847013,-500.0,0.00027397,2]
[332059211,1720945847026,-500.0,0.00027397,2]
[332059212,1720945847036,-500.0,0.00027397,2]
[332059213,1720945847047,-500.0,0.00027397,2]
[332059214,1720945847056,-500.0,0.00027397,2]
[332059215,1720945847065,-500.0,0.00027397,2]
[332059216,1720945847075,-500.0,0.00027397,2]
[332059217,1720945847085,-500.0,0.00027397,2]
[332059219,1720945847094,-500.0,0.00027397,2]
[332059220,1720945847103,-500.0,0.00027397,2]
[332059221,1720945847117,-357.70365407,0.00027397,2]
[332059223,1720945847127,-1480.74,0.00027397,2]
[332059225,1720945847136,-655.64,0.00027397,2]
[332059228,1720945847146,-151.0,0.00027397,7]
[332059230,1720945847156,-500.0,0.00027397,2]
[332059232,1720945847166,-500.0,0.00027397,2]
[332059234,1720945847175,-956.89,0.00027397,2]
[332059235,1720945847184,-168.81135614,0.00027397,2]
[332059238,1720945847195,-600.95,0.00027397,2]
[332059239,1720945847204,-500.0,0.00027397,2]
[332059241,1720945847213,-500.0,0.00027397,2]
[332059243,1720945847222,-297.990503,0.00027397,7]
[332059245,1720945847231,-297.990497,0.00027397,7]
[332059247,1720945847241,-4145.8,0.00027397,2]
[332059249,1720945847250,-500.0,0.00027397,2]
[332059251,1720945847259,-755.19,0.00027397,2]
[332059253,1720945847268,-1044.49,0.00027397,4]
[332059255,1720945847278,-500.0,0.00027397,2]
[332059257,1720945847287,-1116.64,0.00027397,2]
[332059259,1720945847296,-980.28,0.00027397,2]
[332059261,1720945847306,-500.0,0.00027397,2]
[332059263,1720945847315,-500.0,0.00027397,2]
[332059265,1720945847324,-594.74,0.00027397,2]
[332059267,1720945847333,-500.0,0.00027397,2]
[332059269,1720945847342,-514.38293586,0.00027397,2]
[332059271,1720945847351,-500.0,0.00027397,2]
[332059273,1720945847360,-500.0,0.00027397,2]
[332059275,1720945847369,-583.3,0.00027397,2]
[332059277,1720945847379,-500.0,0.00027397,2]
[332059279,1720945847389,-378.568652,0.00027397,7]
[332059281,1720945847398,-378.568652,0.00027397,7]
[332059283,1720945847408,-660.41,0.00027397,2]
[332059285,1720945847417,-500.0,0.00027397,2]
[332059287,1720945847426,-500.0,0.00027397,2]
[332059289,1720945847437,-322.105572,0.00027397,7]
[332059291,1720945847446,-322.105572,0.00027397,7]
[332059293,1720945847455,-500.0,0.00027397,2]
[332059295,1720945847465,-14571.43,0.00027397,2]
[332059297,1720945847474,-207.231677,0.00027397,7]
[332059299,1720945847483,-207.231677,0.00027397,7]
[332059301,1720945847493,-151.0,0.00027397,7]
[332059303,1720945847502,-787.363927,0.00027397,7]
[332059305,1720945847511,-151.0,0.00027397,7]
[332059306,1720945847521,-186.575251,0.00027397,7]
[332059309,1720945847531,-186.575251,0.00027397,7]
[332059311,1720945847543,-151.0,0.00027397,7]
[332059313,1720945847554,-1723.05,0.00027397,2]
[332059315,1720945847564,-151.0,0.00027397,7]
[332059317,1720945847574,-500.0,0.00027397,2]
[332059319,1720945847583,-192.75185,0.00027397,2]
[332059321,1720945847593,-192.75185,0.00027397,2]
[332059324,1720945847604,-192.75185,0.00027397,2]
[332059326,1720945847615,-192.75185,0.00027397,2]
[332059328,1720945847625,-192.75185,0.00027397,2]
[332059330,1720945847634,-192.75185,0.00027397,2]
[332059332,1720945847643,-192.75185,0.00027397,2]
[332059334,1720945847654,-192.75185,0.00027397,2]
[332059336,1720945847664,-192.75185,0.00027397,2]
[332059338,1720945847672,-192.75185,0.00027397,2]
[332059340,1720945847682,-192.75185,0.00027397,2]
[332059342,1720945847691,-192.75185,0.00027397,2]
[332059344,1720945847699,-192.75185,0.00027397,2]
[332059346,1720945847710,-192.75185,0.00027397,2]
[332059348,1720945847719,-192.75185,0.00027397,2]
[332059350,1720945847728,-192.75185,0.00027397,2]
[332059352,1720945847737,-192.75185,0.00027397,2]
[332059354,1720945847746,-192.75185,0.00027397,2]
[332059356,1720945847755,-192.75185,0.00027397,2]
[332059358,1720945847764,-192.751858,0.00027397,2]
[332059360,1720945847773,-171.442054,0.00027397,120]
[332059362,1720945847783,-175.48417072,0.000274,2]
[332059364,1720945847793,-626.81389372,0.00027483,2]
[332059366,1720945847802,-154.59445059,0.00027493,2]
[332059368,1720945847812,-43690.95914845,0.000275,2]
[332059370,1720945847821,-1671.71669364,0.0002752,2]
[332059372,1720945847830,-153.55490359,0.00027525,2]
[332059374,1720945847839,-626.81389372,0.00027533,2]
[332059376,1720945847848,-1671.71669364,0.00027639,2]
[332059378,1720945847857,-425.12,0.00027654,2]
[332059380,1720945847866,-1425.59,0.00027671,2]
[332059382,1720945847875,-500.0,0.00027671,2]
[332059384,1720945847884,-1480.74,0.00027671,2]
[332059386,1720945847893,-655.64,0.00027671,2]
[332059388,1720945847902,-500.0,0.00027671,2]
[332059390,1720945847912,-500.0,0.00027671,2]
[332059392,1720945847921,-956.89,0.00027671,2]
[332059394,1720945847929,-600.95,0.00027671,2]
[332059396,1720945847939,-648.55804055,0.00027671,2]
[332059398,1720945847949,-500.0,0.00027671,2]
[332059400,1720945847958,-4145.8,0.00027671,2]
[332059402,1720945847967,-347.78788,0.00027671,7]
[332059404,1720945847976,-500.0,0.00027671,2]
[332059406,1720945847985,-347.78788,0.00027671,7]
[332059408,1720945847995,-755.19,0.00027671,2]
[332059410,1720945848006,-1044.49,0.00027671,4]
[332059412,1720945848015,-151.0,0.00027671,7]
[332059414,1720945848024,-260.863233,0.00027671,7]
[332059416,1720945848034,-475.87778118,0.00027671,2]
[332059418,1720945848044,-151.0,0.00027671,7]
[332059420,1720945848053,-1116.64,0.00027671,2]
[332059422,1720945848062,-980.28,0.00027671,2]
[332059424,1720945848072,-333.550479,0.00027671,7]
[332059426,1720945848081,-333.550479,0.00027671,7]
[332059428,1720945848091,-500.0,0.00027671,2]
[332059430,1720945848099,-646.42797551,0.00027671,2]
[332059432,1720945848109,-151.0,0.00027671,7]
[332059434,1720945848122,-594.74,0.00027671,2]
[332059436,1720945848131,-309.1394754,0.00027671,2]
[332059438,1720945848142,-500.0,0.00027671,2]
[332059440,1720945848152,-410.614667,0.00027671,7]
[332059442,1720945848163,-410.614667,0.00027671,7]
[332059444,1720945848172,-827.353758,0.00027671,7]
[332059446,1720945848181,-180.90179,0.00027671,7]
[332059448,1720945848192,-180.90179,0.00027671,7]
[332059450,1720945848202,-500.0,0.00027671,2]
[332059452,1720945848212,-827.353758,0.00027671,7]
[332059454,1720945848222,-583.3,0.00027671,2]
[332059457,1720945848232,-500.0,0.00027671,2]
[332059459,1720945848243,-660.41,0.00027671,2]
[332059461,1720945848252,-500.0,0.00027671,2]
[332059463,1720945848263,-500.0,0.00027671,2]
[332059465,1720945848272,-500.0,0.00027671,2]
[332059467,1720945848282,-14571.43,0.00027671,2]
[332059475,1720945848354,-1723.05,0.00027671,2]
[332059477,1720945848364,-500.0,0.00027671,2]
[332059479,1720945848373,-419.11509762,0.00027831,2]
[332059481,1720945848382,-1671.71669364,0.00027841,2]
[332059483,1720945848392,-1425.59,0.00027945,2]
[332059485,1720945848401,-500.0,0.00027945,2]
[332059487,1720945848409,-1480.74,0.00027945,2]
[332059489,1720945848420,-655.64,0.00027945,2]
[332059491,1720945848429,-500.0,0.00027945,2]
[332059493,1720945848438,-500.0,0.00027945,2]
[332059495,1720945848448,-956.89,0.00027945,2]
[332059497,1720945848457,-600.95,0.00027945,2]
[332059499,1720945848466,-500.0,0.00027945,2]
[332059501,1720945848476,-4145.8,0.00027945,2]
[332059503,1720945848485,-500.0,0.00027945,2]
[332059505,1720945848495,-755.19,0.00027945,2]
[332059507,1720945848505,-1044.49,0.00027945,4]
[332059509,1720945848515,-1116.64,0.00027945,2]
[332059511,1720945848524,-980.28,0.00027945,2]
[332059513,1720945848534,-500.0,0.00027945,2]
[332059515,1720945848545,-594.74,0.00027945,2]
[332059517,1720945848554,-500.0,0.00027945,2]
[332059519,1720945848563,-500.0,0.00027945,2]
[332059521,1720945848573,-583.3,0.00027945,2]
[332059523,1720945848583,-591.63205234,0.00027945,2]
[332059526,1720945848593,-378.568652,0.00027945,7]
[332059528,1720945848604,-378.568652,0.00027945,7]
[332059530,1720945848614,-660.41,0.00027945,2]
[332059532,1720945848624,-500.0,0.00027945,2]
[332059534,1720945848635,-500.0,0.00027945,2]
[332059536,1720945848644,-322.105572,0.00027945,7]
[332059538,1720945848654,-322.105572,0.00027945,7]
[332059540,1720945848663,-500.0,0.00027945,2]
[332059542,1720945848674,-14571.43,0.00027945,2]
[332059544,1720945848683,-207.231677,0.00027945,7]
[332059546,1720945848692,-207.231677,0.00027945,7]
[332059548,1720945848702,-151.0,0.00027945,7]
[332059550,1720945848712,-151.0,0.00027945,7]
[332059552,1720945848722,-186.575251,0.00027945,7]
[332059554,1720945848731,-186.575251,0.00027945,7]
[332059556,1720945848740,-1723.05,0.00027945,2]
[332059558,1720945848750,-151.0,0.00027945,7]
[332059560,1720945848760,-500.0,0.00027945,2]
[332059562,1720945848769,-3934.66867105,0.0002799,2]
[332059572,1720945848857,-7619.84218767,0.0002799,2]
[332059615,1720945849271,-14257.975871,0.0002799,2]
[332060021,1720946106031,5474.73226242,0.00014998,2]
[332060024,1720946167882,3776.426534,0.00014998,2]
[332060025,1720946175005,16260.0862955,0.00014998,2]
[332060027,1720946178905,4701.03547835,0.00014998,2]
[332060028,1720946179433,2103.62892291,0.00014998,2]
[332060029,1720946181955,154.63660398,0.00014998,2]
[332060030,1720946183552,154.63660398,0.00014998,2]
[332060031,1720946201190,3134.48620845,0.00014999,4]
[332060032,1720946254208,154.63660398,0.00014999,2]
[332060033,1720946277019,16260.0862955,0.00014999,2]
[332060034,1720946362015,2440.55236969,0.00014999,2]
[332060035,1720946362042,13885.77309255,0.00014999,2]
[332060036,1720946363211,983.88041302,0.00014999,4]
[332060038,1720946427051,154.77813881,0.00014999,2]
[332060039,1720946440654,553.60850688,0.00014999,2]
[332060042,1720946521385,159.56347891,0.00014999,2]
[332060044,1720946537849,276.30499397,0.00014999,2]
[332060045,1720946544244,1495.62451479,0.00014999,2]
[332060046,1720946591681,261.16520636,0.00014999,2]
[332060047,1720946617247,195.55404408,0.00014999,2]
[332060048,1720946628272,155.72372744,0.00014999,2]
[332060049,1720946647021,222.91124373,0.00014999,2]
[332060050,1720946713195,184.21189297,0.00014999,2]
[332060051,1720946827146,-166.637948,0.00016955,2]
[332060052,1720946839145,-83.362052,0.00016955,2]
[332060053,1720946839173,-240.622864,0.0001756,2]
[332060054,1720946840092,-2.377136,0.0001756,2]
[332060055,1720946840115,-154.85883175,0.0001756,2]
[332060056,1720946840137,-1397.85995773,0.00017561,2]
[332060057,1720946931508,-737.41540742,0.00017561,2]
[332060060,1720946931588,-737.41540742,0.00017561,2]
[332060063,1720946931662,-706.15906534,0.00017561,2]
[332060065,1720946945086,-18192.56185451,0.00017561,2]
[332060066,1720946950160,-3128.58830758,0.00017561,2]
[332060067,1720946950181,-54251.56506793,0.00018,2]
[332060068,1720946950202,-205.28078858,0.00018878,2]
[332060069,1720946950222,-162.1305615,0.00019178,2]
[332060070,1720946953111,-602.6152549,0.00021096,2]
[332060071,1720947000072,633.14598051,0.00019164,2]
[332060072,1720947000098,592.68007263,0.00019164,2]
[332060073,1720947000220,641.148592,0.00019164,2]
[332060194,1720947038259,-6990.73053784,0.00018899,2]
[332060196,1720947038269,-2839.68178254,0.00018899,2]
[332060198,1720947038279,-10593.69324733,0.00018899,2]
[332060200,1720947038289,-5508.34064728,0.00018899,2]
[332060202,1720947038299,-8146.23476161,0.00018899,2]
[332060204,1720947038309,-467.07869087,0.000189,2]
[332060206,1720947038319,-3609.45807284,0.00019164,2]
[332060208,1720947038329,-1989.10876009,0.00019164,2]
[332060210,1720947038339,-1637.23767078,0.00019164,2]
[332060212,1720947038349,-2132.68479145,0.00019164,2]
[332060215,1720947038365,-1106.55797426,0.00019164,2]
[332060217,1720947038379,-2424.26729451,0.00019164,2]
[332060219,1720947038389,-1491.5302579,0.00019164,2]
[332060221,1720947038402,-662.80627951,0.00019165,2]
[332060223,1720947038412,-936.31532871,0.00019165,2]
[332060225,1720947038422,-725.94141239,0.00019165,2]
[332060227,1720947038432,-524.3970699,0.00019165,2]
[332060229,1720947038442,-778.04856015,0.00019165,2]
[332060232,1720947038454,-1436.57937401,0.00019165,2]
[332060234,1720947038465,-532.75729962,0.00019165,2]
[332060236,1720947038478,-518.42478089,0.00019165,2]
[332060237,1720947038491,-712.01102421,0.00019165,2]
[332060239,1720947038501,-568.28433446,0.00019165,2]
[332060242,1720947038512,-845.11491107,0.00019165,2]
[332060244,1720947038523,-532.75729962,0.00019165,2]
[332060246,1720947038532,-166.884452,0.00019452,2]
[332060248,1720947038542,-166.884452,0.00019524,2]
[332060250,1720947038553,-166.884452,0.00019597,2]
[332060252,1720947038564,-166.884452,0.00019669,2]
[332060269,1720947038726,-166.884452,0.00019741,2]
[332060271,1720947038739,-166.884452,0.00019814,2]
[332060273,1720947038749,-166.884452,0.00019886,2]
[332060275,1720947038758,-166.884452,0.00019959,2]
[332060277,1720947038767,-166.884452,0.00020031,2]
[332060279,1720947038777,-166.884452,0.00020104,2]
[332060281,1720947038787,-166.884452,0.00020176,2]
[332060283,1720947038797,-284.195571,0.00020226,2]
[332060285,1720947038807,-166.884452,0.00020248,2]
[332060287,1720947038817,-166.884452,0.00020321,2]
[332060290,1720947038827,-166.884452,0.00020393,2]
[332060292,1720947038838,-166.884452,0.00020466,2]
[332060294,1720947038849,-283.61519466,0.00021095,2]
[332060296,1720947038858,-208.92660568,0.00021095,2]
[332060298,1720947038868,-154.51328316,0.00021095,2]
[332060300,1720947038878,-375.14484938,0.00021095,2]
[332060302,1720947038887,-319.02412472,0.00021095,2]
[332060304,1720947038898,-302.06979545,0.00021095,2]
[332060306,1720947038907,-480.81570684,0.00021095,2]
[332060308,1720947038917,-458.73148231,0.00021095,2]
[332060310,1720947038927,-182.50997786,0.00021095,2]
[332060312,1720947038936,-464.06413834,0.00021095,2]
[332060314,1720947038946,-194.00411554,0.00021095,2]
[332060316,1720947038956,-154.51328316,0.00021095,2]
[332060318,1720947038965,-299.18648633,0.00021095,2]
[332060320,1720947038975,-196.03927829,0.00021095,2]
[332060322,1720947038986,-375.14484938,0.00021095,2]
[332060324,1720947038995,-180.08554877,0.00021095,2]
[332060326,1720947039005,-154.51328316,0.00021095,2]
[332060328,1720947039015,-403.87685403,0.00021095,2]
[332060330,1720947039025,-154.51328316,0.00021095,2]
[332060332,1720947039034,-240.7108235,0.00021095,2]
[332060334,1720947039043,-154.51328316,0.00021095,2]
[332060336,1720947039053,-209.41683688,0.00021095,2]
[332060338,1720947039063,-154.51328316,0.00021095,2]
[332060340,1720947039073,-196.77965885,0.00021095,2]
[332060342,1720947039082,-563.641385,0.00021095,2]
[332060344,1720947039092,-500.0,0.00021095,2]
[332060346,1720947039102,-626.54129099,0.00021095,2]
[332060348,1720947039111,-379.836531,0.00021096,2]
[332060350,1720947039121,-644.869237,0.00021096,2]
[332060352,1720947039130,-154.51328316,0.00021096,2]
[332060354,1720947039140,-4702.50407464,0.00021096,2]
[332060356,1720947039149,-409.2297493,0.00021096,2]
[332060357,1720947039158,-154.51328316,0.00021096,2]
[332060360,1720947039170,-3777.63299636,0.00021096,2]
[332060362,1720947039179,-4038.95691442,0.00021096,2]
[332060364,1720947039189,-154.51328316,0.00021096,2]
[332060366,1720947039198,-3777.63299636,0.00021096,2]
[332060368,1720947039207,-154.51328316,0.00021096,2]
[332060370,1720947039217,-16260.0862955,0.00021096,2]
[332060372,1720947039227,-19416.47715346,0.00021096,2]
[332060374,1720947039238,-182.09892975,0.00021096,2]
[332060376,1720947039248,-1342.92679767,0.00021186,2]
[332060378,1720947039257,-188.40185243,0.00021286,2]
[332060380,1720947039267,-888.85276895,0.00021286,2]
[332060382,1720947039276,-11049.85406924,0.00021286,2]
[332060384,1720947039285,-154.96102002,0.00021286,2]
[332060386,1720947039294,-208.31098485,0.00021286,2]
[332060388,1720947039303,-154.85744741,0.00021286,2]
[332060390,1720947039313,-154.93979392,0.00021286,2]
[332060392,1720947039322,-950.44599873,0.00021286,2]
[332060394,1720947039331,-301.37525549,0.00021286,2]
[332060396,1720947039340,-154.83870277,0.00021286,2]
[332060398,1720947039351,-160.18263848,0.00021286,2]
[332060400,1720947039360,-2135.40713266,0.00021286,2]
[332060402,1720947039370,-11049.85406924,0.00021286,2]
[332060404,1720947039379,-154.54409492,0.00021917,2]
[332060406,1720947039388,-880.93169364,0.00022278,2]
[332060408,1720947039399,-654.53564463,0.0002243,2]
[332060410,1720947039408,-1342.92679765,0.00023574,2]
[332060412,1720947039418,-467.07869087,0.000239,2]
[332060414,1720947039427,-154.66497417,0.00023966,2]
[332060416,1720947039437,-2000.0,0.00024,3]
[332060418,1720947039447,-492.90786688,0.00024481,2]
[332060420,1720947039457,-13009.4293874,0.00024647,3]
[332060422,1720947039469,-500.0,0.00024657,2]
[332060424,1720947039479,-500.0,0.00024657,2]
[332060427,1720947039492,-500.0,0.00024657,2]
[332060429,1720947039501,-500.0,0.00024657,2]
[332060431,1720947039512,-500.0,0.00024657,2]
[332060433,1720947039521,-200.0,0.00024657,7]
[332060435,1720947039530,-500.0,0.00024657,2]
[332060437,1720947039540,-500.0,0.00024657,2]
[332060439,1720947039551,-501.35062124,0.00024657,2]
[332060441,1720947039562,-500.0,0.00024657,2]
[332060443,1720947039571,-500.0,0.00024657,2]
[332060445,1720947039580,-500.0,0.00024657,2]
[332060447,1720947039590,-500.0,0.00024657,2]
[332060449,1720947039599,-500.0,0.00024657,2]
[332060451,1720947039608,-500.0,0.00024657,2]
[332060453,1720947039620,-500.0,0.00024657,2]
[332060455,1720947039630,-500.0,0.00024657,2]
[332060457,1720947039640,-505.29701359,0.00024657,2]
[332060459,1720947039648,-500.0,0.00024657,2]
[332060461,1720947039658,-500.0,0.00024657,2]
[332060463,1720947039667,-495.87183754,0.00024657,2]
[332060465,1720947039677,-500.0,0.00024657,2]
[332060467,1720947039686,-500.0,0.00024657,2]
[332060469,1720947039697,-500.0,0.00024657,2]
[332060471,1720947039706,-500.0,0.00024657,2]
[332060473,1720947039715,-500.0,0.00024657,2]
[332060476,1720947039725,-500.0,0.00024657,2]
[332060480,1720947039737,-500.0,0.00024657,2]
[332060483,1720947039746,-500.0,0.00024657,2]
[332060485,1720947039756,-500.0,0.00024657,2]
[332060487,1720947039766,-506.36333707,0.00024657,2]
[332060489,1720947039776,-500.0,0.00024657,2]
[332060491,1720947039785,-500.0,0.00024657,2]
[332060493,1720947039794,-500.0,0.00024657,2]
[332060495,1720947039803,-500.0,0.00024657,2]
[332060497,1720947039813,-500.0,0.00024657,2]
[332060499,1720947039822,-514.07015745,0.00024657,2]
[332060501,1720947039832,-500.0,0.00024657,2]
[332060503,1720947039841,-500.0,0.00024657,2]
[332060505,1720947039851,-500.0,0.00024657,2]
[332060507,1720947039860,-500.0,0.00024657,2]
[332060509,1720947039870,-500.0,0.00024657,2]
[332060511,1720947039879,-500.0,0.00024657,2]
[332060513,1720947039888,-500.0,0.00024657,2]
[332060515,1720947039897,-621.27,0.00024657,2]
[332060517,1720947039906,-500.0,0.00024657,2]
[332060519,1720947039915,-500.0,0.00024657,2]
[332060521,1720947039924,-500.0,0.00024657,2]
[332060523,1720947039933,-500.0,0.00024657,2]
[332060525,1720947039942,-500.0,0.00024657,2]
[332060527,1720947039951,-500.0,0.00024657,2]
[332060529,1720947039961,-500.0,0.00024657,2]
[332060531,1720947039970,-422.70503666,0.00024657,2]
[332060544,1720947040086,-530.58467614,0.00019165,2]
[332060546,1720947040095,-77.29496334,0.00024657,2]
[332060547,1720947040105,-500.0,0.00024657,2]
[332060549,1720947040114,-500.0,0.00024657,2]
[332060551,1720947040123,-500.0,0.00024657,2]
[332060553,1720947040133,-500.0,0.00024657,2]
[332060556,1720947040142,-500.0,0.00024657,2]
[332060557,1720947040152,-500.0,0.00024657,2]
[332060559,1720947040161,-500.0,0.00024657,2]
[332060561,1720947040170,-500.0,0.00024657,2]
[332060563,1720947040179,-500.0,0.00024657,2]
[332060565,1720947040189,-500.0,0.00024657,2]
[332060567,1720947040198,-500.0,0.00024657,2]
[332060569,1720947040208,-500.0,0.00024657,2]
[332060571,1720947040216,-500.0,0.00024657,2]
[332060573,1720947040226,-500.0,0.00024657,2]
[332060575,1720947040237,-500.0,0.00024657,2]
[332060577,1720947040246,-500.0,0.00024657,2]
[332060579,1720947040256,-500.0,0.00024657,2]
[332060581,1720947040266,-500.0,0.00024657,2]
[332060583,1720947040275,-500.0,0.00024657,2]
[332060585,1720947040284,-500.0,0.00024657,2]
[332060587,1720947040293,-500.0,0.00024657,2]
[332060589,1720947040302,-500.0,0.00024657,2]
[332060591,1720947040311,-500.0,0.00024657,2]
[332060593,1720947040320,-500.0,0.00024657,2]
[332060595,1720947040329,-500.0,0.00024657,2]
[332060597,1720947040339,-383.95239798,0.00024657,2]
[332060599,1720947040348,-500.0,0.00024657,2]
[332060601,1720947040357,-500.0,0.00024657,2]
[332060604,1720947040366,-500.0,0.00024657,2]
[332060607,1720947040376,-505.725413,0.00024657,2]
[332060610,1720947040385,-500.0,0.00024657,2]
[332060612,1720947040395,-500.0,0.00024657,2]
[332060614,1720947040405,-500.0,0.00024657,2]
[332060616,1720947040414,-500.0,0.00024657,2]
[332060618,1720947040427,-500.0,0.00024657,2]
[332060620,1720947040437,-500.0,0.00024657,2]
[332060622,1720947040447,-500.0,0.00024657,2]
[332060624,1720947040456,-500.0,0.00024657,2]
[332060626,1720947040466,-500.0,0.00024657,2]
[332060628,1720947040477,-500.0,0.00024657,2]
[332060630,1720947040489,-500.0,0.00024657,2]
[332060632,1720947040499,-500.0,0.00024657,2]
[332060635,1720947040511,-500.0,0.00024657,2]
[332060637,1720947040522,-538.30607871,0.00024657,2]
[332060638,1720947040532,-500.0,0.00024657,2]
[332060639,1720947040543,-500.0,0.00024657,2]
[332060640,1720947040552,-570.56176049,0.00024657,2]
[332060641,1720947040561,-500.0,0.00024657,2]
[332060642,1720947040571,-500.0,0.00024657,2]
[332060643,1720947040580,-500.0,0.00024657,2]
[332060644,1720947040589,-549.4379854,0.00024657,2]
[332060645,1720947040598,-500.0,0.00024657,2]
[332060646,1720947040607,-615.5,0.00024657,4]
[332060647,1720947040616,-500.0,0.00024657,2]
[332060648,1720947040626,-500.0,0.00024657,2]
[332060649,1720947040636,-500.0,0.00024657,2]
[332060650,1720947040646,-764.10820365,0.00024657,5]
[332060651,1720947040655,-500.0,0.00024657,2]
[332060652,1720947040664,-500.0,0.00024657,2]
[332060653,1720947040673,-500.0,0.00024657,2]
[332060654,1720947040683,-500.0,0.00024657,2]
[332060655,1720947040692,-500.0,0.00024657,2]
[332060656,1720947040703,-500.0,0.00024657,2]
[332060657,1720947040713,-500.0,0.00024657,2]
[332060658,1720947040722,-500.0,0.00024657,2]
[332060659,1720947040734,-500.0,0.00024657,2]
[332060660,1720947040744,-500.0,0.00024657,2]
[332060661,1720947040753,-469.51986175,0.00024657,2]
[332060663,1720947040763,-500.0,0.00024657,2]
[332060665,1720947040773,-500.0,0.00024657,2]
[332060667,1720947040782,-500.0,0.00024657,2]
[332060669,1720947040791,-500.0,0.00024657,2]
[332060671,1720947040801,-500.0,0.00024657,2]
[332060673,1720947040810,-500.0,0.00024657,2]
[332060675,1720947040821,-500.0,0.00024657,2]
[332060677,1720947040830,-502.74929534,0.00024657,2]
[332060679,1720947040840,-500.0,0.00024657,2]
[332060681,1720947040850,-500.0,0.00024657,2]
[332060683,1720947040859,-500.0,0.00024657,2]
[332060685,1720947040868,-500.0,0.00024657,2]
[332060687,1720947040877,-500.0,0.00024657,2]
[332060698,1720947040971,-334.28405629,0.00024657,2]
[332060701,1720947040984,-500.0,0.00024657,2]
[332060703,1720947040995,-500.0,0.00024657,2]
[332060705,1720947041005,-500.0,0.00024657,2]
[332060707,1720947041016,-500.0,0.00024657,2]
[332060709,1720947041025,-500.0,0.00024657,2]
[332060711,1720947041034,-500.0,0.00024657,2]
[332060713,1720947041043,-500.0,0.00024657,2]
[332060715,1720947041053,-500.0,0.00024657,2]
[332060717,1720947041062,-500.0,0.00024657,2]
[332060719,1720947041071,-500.0,0.00024657,2]
[332060721,1720947041080,-500.0,0.00024657,2]
[332060723,1720947041089,-500.0,0.00024657,2]
[332060725,1720947041098,-500.0,0.00024657,2]
[332060727,1720947041107,-500.0,0.00024657,2]
[332060729,1720947041116,-500.0,0.00024657,2]
[332060731,1720947041125,-500.0,0.00024657,2]
[332060733,1720947041135,-500.0,0.00024657,2]
[332060735,1720947041145,-500.0,0.00024657,2]
[332060737,1720947041154,-500.0,0.00024657,2]
[332060739,1720947041163,-513.28619922,0.00024657,2]
[332060741,1720947041173,-500.0,0.00024657,2]
[332060743,1720947041182,-500.0,0.00024657,2]
[332060745,1720947041191,-500.0,0.00024657,2]
[332060747,1720947041200,-500.0,0.00024657,2]
[332060749,1720947041209,-500.0,0.00024657,2]
[332060751,1720947041218,-500.0,0.00024657,2]
[332060753,1720947041227,-500.0,0.00024657,2]
[332060755,1720947041240,-500.0,0.00024657,2]
[332060757,1720947041249,-500.93733771,0.00024657,2]
[332060759,1720947041259,-500.0,0.00024657,2]